[Event "European Union U14-ch 2024"]
[Site "Roznov pod Radhostem"]
[Date "2024.08.07"]
[Round "3.3"]
[White "Pritulina, Nadezhda"]
[Black "Belocky, Daniel"]
[Result "0-1"]
[ECO "C02"]
[WhiteElo "1589"]
[BlackElo "1731"]
[Annotator "NA RC"]
[PlyCount "64"]
[EventDate "2024.08.02"]
[EventType "swiss"]
[EventCountry "CZE"]
[SourceTitle "playchess.com"]
[Source "ChessBase"]
[SourceQuality "1"]
[TimeControl "5400+30"]

1. e4 {[%emt 0:00:01]} e6 {[%emt 0:00:02]} 2. d4 {[%emt 0:00:03]} d5 {[%emt 0:00:03]} 3. e5 {[%emt 0:00:03]} c5 {[%emt 0:00:03]} 4. c3 {[%emt 0:00:11]} Nc6 {[%emt 0:00:03]} 5. Nf3 {[%emt 0:00:04]} Bd7 {[%emt 0:00:04]} 6. Be2 {[%emt 0:00:06]} f6 {[%emt 0:00:02]} 7. exf6 {[%emt 0:00:17]} Nxf6 {[%emt 0:00:04]} 8. Ne5 {[%emt 0:00:45]} Qb6 {[%emt 0:01:12]} 9. Bh5+ {[%emt 0:03:17]} g6 {[%emt 0:00:08]} 10. Qf3 {[%emt 0:06:47]} Nxe5 {[%emt 0:01:41]} 11. Qxf6 {[%emt 0:00:46]} Nd3+ {[%emt 0:00:12]} 12. Kd2 {[%emt 0:04:21]} Nxc1 {[%emt 0:02:12]} 13. Kxc1 {[%emt 0:00:11]} Bh6+ {[%emt 0:00:15]} 14. f4 {[%emt 0:01:12]} Bxf4+ {[%emt 0:00:55]} 15. Qxf4 {[%emt 0:00:08]} gxh5 {[%emt 0:00:04]} 16. Qe5 {[%emt 0:00:43]} O-O-O {[%emt 0:00:05]} 17. dxc5 {[%emt 0:04:43]} Qxc5 {[%emt 0:02:24]} 18. Qxh5 {[%emt 0:00:29]} Rdf8 {[%emt 0:01:07]} 19. Nd2 {[%emt 0:00:57]} Rf2 {[%emt 0:00:38]} 20. Qe5 {[%emt 0:01:41]} Rhf8 {[%emt 0:00:50]} 21. b4 {[%emt 0:00:20]} Qc7 {[%emt 0:01:17]} 22. Qg7 {[%emt 0:02:54]} Qf4 {[%emt 0:00:25]} 23. Qd4 {[%emt 0:04:11]} Qxd4 {[%emt 0:00:23]} 24. cxd4 {[%emt 0:00:05]} Rxg2 {[%emt 0:00:06]} 25. h3 {[%emt 0:03:42]} Rff2 {[%emt 0:00:07]} 26. Nb3 {[%emt 0:00:43]} Rxa2 {[%emt 0:00:13]} 27. Kb1 {[%emt 0:01:33]} Rab2+ {[%emt 0:00:08]} 28. Kc1 {[%emt 0:00:56]} Rxb3 {[%emt 0:00:10]} 29. Rxa7 {[%emt 0:00:13]} Rxb4 {[%emt 0:00:08]} 30. Ra8+ {[%emt 0:00:16]} Kc7 {[%emt 0:00:06]} 31. Rd1 {[%emt 0:00:37]} e5 {[%emt 0:00:12]} 32. dxe5 {[%emt 0:00:59]} Bf5 {[%emt 0:00:05]} 0-1

[Event "European Union U14-ch 2024"]
[Site "Roznov pod Radhostem"]
[Date "2024.08.07"]
[Round "3.4"]
[White "Michalska, Lena"]
[Black "Myronova, Sofia"]
[Result "1-0"]
[ECO "A04"]
[WhiteElo "1837"]
[BlackElo "1463"]
[Annotator "NA RC"]
[PlyCount "53"]
[EventDate "2024.08.02"]
[EventType "swiss"]
[EventCountry "CZE"]
[SourceTitle "playchess.com"]
[Source "ChessBase"]
[SourceQuality "1"]
[TimeControl "5400+30"]

1. Nf3 {[%emt 0:00:01]} Nc6 {[%emt 0:00:14]} 2. d4 {[%emt 0:00:50]} d5 {[%emt 0:00:30]} 3. g3 {[%emt 0:02:25]} Nf6 {[%emt 0:02:36]} 4. Bg2 {[%emt 0:00:12]} Bf5 {[%emt 0:01:11]} 5. c3 {[%emt 0:03:18]} e6 {[%emt 0:02:27]} 6. Bg5 {[%emt 0:01:03]} Be7 {[%emt 0:01:42]} 7. Nbd2 {[%emt 0:01:34]} O-O {[%emt 0:03:55]} 8. Nh4 {[%emt 0:02:02]} Be4 {[%emt 0:04:45]} 9. Bxf6 {[%emt 0:09:16]} Bxf6 {[%emt 0:00:48]} 10. Nxe4 {[%emt 0:00:07]} dxe4 {[%emt 0:00:42]} 11. Bxe4 {[%emt 0:00:05]} Bxh4 {[%emt 0:00:32]} 12. gxh4 {[%emt 0:00:06]} Qxh4 {[%emt 0:00:33]} 13. Qd3 {[%emt 0:02:51]} Qh6 {[%emt 0:11:04]} 14. Qf3 {[%emt 0:06:17]} e5 {[%emt 0:07:23]} 15. e3 {[%emt 0:17:28]} exd4 {[%emt 0:11:38]} 16. cxd4 {[%emt 0:00:06]} Rab8 {[%emt 0:01:25]} 17. O-O-O {[%emt 0:11:39]} Qd6 {[%emt 0:09:55]} 18. Rdg1 {[%emt 0:07:17]} Qh6 {[%emt 0:04:57]} 19. Kb1 {[%emt 0:03:47]} a5 {[%emt 0:05:30]} 20. Rg3 {[%emt 0:00:20]} g6 {[%emt 0:02:10]} 21. h4 {[%emt 0:06:14]} Qg7 {[%emt 0:03:26]} 22. h5 {[%emt 0:01:24]} h6 {[%emt 0:04:01]} 23. hxg6 {[%emt 0:05:49]} fxg6 {[%emt 0:04:02]} 24. Qg2 {[%emt 0:00:12]} g5 {[%emt 0:00:33]} 25. Bd5+ {[%emt 0:00:05]} Kh8 {[%emt 0:02:16]} 26. Rxg5 {[%emt 0:01:20]} Qh7+ {[%emt 0:00:29]} 27. Be4 {[%emt 0:00:19]} 1-0

[Event "European Union U14-ch 2024"]
[Site "Roznov pod Radhostem"]
[Date "2024.08.07"]
[Round "3.5"]
[White "Golub, Mia"]
[Black "Kincses, Emma"]
[Result "0-1"]
[ECO "D37"]
[WhiteElo "1418"]
[BlackElo "1618"]
[Annotator "NA RC"]
[PlyCount "72"]
[EventDate "2024.08.02"]
[EventType "swiss"]
[EventCountry "CZE"]
[SourceTitle "playchess.com"]
[Source "ChessBase"]
[SourceQuality "1"]
[TimeControl "5400+30"]

1. d4 {[%emt 0:00:03]} d5 {[%emt 0:00:12]} 2. c4 {[%emt 0:00:07]} e6 {[%emt 0:00:06]} 3. Nf3 {[%emt 0:00:11]} Nf6 {[%emt 0:00:09]} 4. Nc3 {[%emt 0:01:28]} Be7 {[%emt 0:03:48]} 5. Bf4 {[%emt 0:02:33]} O-O {[%emt 0:02:01]} 6. e3 {[%emt 0:02:13]} b6 {[%emt 0:01:13]} 7. Be2 {[%emt 0:02:18]} Bb7 {[%emt 0:01:15]} 8. O-O {[%emt 0:03:15]} c5 {[%emt 0:02:35]} 9. cxd5 {[%emt 0:03:00]} exd5 {[%emt 0:02:28]} 10. Qc2 {[%emt 0:03:54]} Ne4 {[%emt 0:05:24]} 11. Bd3 {[%emt 0:04:00]} Nf6 {[%emt 0:02:07]} 12. Ng5 {[%emt 0:03:24]} g6 {[%emt 0:02:22]} 13. b3 {[%emt 0:05:24]} Nh5 {[%emt 0:03:40]} 14. Be5 {[%emt 0:03:26]} Bxg5 {[%emt 0:01:40]} 15. f4 {[%emt 0:03:31]} Bf6 {[%emt 0:02:33]} 16. Bxf6 {[%emt 0:00:32]} Nxf6 {[%emt 0:00:20]} 17. f5 {[%emt 0:03:00]} cxd4 {[%emt 0:02:29]} 18. exd4 {[%emt 0:05:30]} Nbd7 {[%emt 0:01:46]} 19. Qf2 {[%emt 0:04:49]} Ne4 {[%emt 0:14:07]} 20. Qc2 {[%emt 0:03:39]} Qf6 {[%emt 0:11:52]} 21. Ne2 {[%emt 0:08:09]} Qg7 {[%emt 0:04:58]} 22. Qc7 {[%emt 0:03:53]} Ndc5 {[%emt 0:01:34]} 23. Bxe4 {[%emt 0:02:32]} Rfc8 {[%emt 0:07:17]} 24. Qe7 {[%emt 0:04:43]} Re8 {[%emt 0:02:21]} 25. Qc7 {[%emt 0:03:39]} Rac8 {[%emt 0:00:16]} 26. Qf4 {[%emt 0:09:28]} Nxe4 {[%emt 0:00:43]} 27. a4 Ba6 {[%emt 0:01:09]} 28. Rfe1 {[%emt 0:05:19]} Bxe2 {[%emt 0:00:13]} 29. Qe3 {[%emt 0:05:25]} Ba6 {[%emt 0:00:43]} 30. fxg6 {[%emt 0:01:39]} hxg6 {[%emt 0:00:20]} 31. a5 {[%emt 0:01:13]} Bb7 {[%emt 0:01:03]} 32. a6 {[%emt 0:01:20]} Bc6 {[%emt 0:00:48]} 33. b4 {[%emt 0:01:27]} Bb5 {[%emt 0:01:11]} 34. h3 {[%emt 0:00:34]} Rc4 {[%emt 0:01:03]} 35. Red1 {[%emt 0:01:13]} Nc3 {[%emt 0:01:08]} 36. Qxe8+ {[%emt 0:00:54]} Bxe8 {[%emt 0:00:17]} 0-1

[Event "European Union U14-ch 2024"]
[Site "Roznov pod Radhostem"]
[Date "2024.08.07"]
[Round "3.6"]
[White "Madel, Luca"]
[Black "Bartova, Hana"]
[Result "0-1"]
[ECO "A45"]
[WhiteElo "1628"]
[BlackElo "1796"]
[Annotator "NA RC"]
[PlyCount "42"]
[EventDate "2024.08.02"]
[EventType "swiss"]
[EventCountry "CZE"]
[SourceTitle "playchess.com"]
[Source "ChessBase"]
[SourceQuality "1"]
[TimeControl "5400+30"]

1. d4 {[%emt 0:00:09]} Nf6 {[%emt 0:00:06]} 2. Bf4 {[%emt 0:00:08]} d6 {[%emt 0:00:07]} 3. Nf3 {[%emt 0:01:02]} g6 {[%emt 0:00:21]} 4. e3 {[%emt 0:00:40]} Bg7 {[%emt 0:00:10]} 5. c4 {[%emt 0:00:32]} O-O {[%emt 0:03:18]} 6. Nc3 {[%emt 0:00:56]} Nbd7 {[%emt 0:02:42]} 7. Bd3 {[%emt 0:01:00]} Nh5 {[%emt 0:08:40]} 8. Bg3 {[%emt 0:01:07]} Nxg3 {[%emt 0:01:41]} 9. hxg3 {[%emt 0:00:08]} e5 {[%emt 0:00:39]} 10. d5 {[%emt 0:02:14]} f5 {[%emt 0:03:47]} 11. e4 {[%emt 0:03:03]} Nc5 {[%emt 0:05:22]} 12. Bc2 {[%emt 0:03:56]} f4 {[%emt 0:20:07]} 13. Ne2 {[%emt 0:04:17]} fxg3 {[%emt 0:01:41]} 14. Nxg3 {[%emt 0:00:36]} Bg4 {[%emt 0:02:37]} 15. Bd3 {[%emt 0:13:49]} Rf4 {[%emt 0:10:34]} 16. b4 {[%emt 0:03:23]} Nxd3+ {[%emt 0:01:17]} 17. Qxd3 {[%emt 0:00:25]} Bxf3 {[%emt 0:00:34]} 18. gxf3 {[%emt 0:00:17]} Qf6 {[%emt 0:00:25]} 19. Rh2 {[%emt 0:07:43]} Rxf3 {[%emt 0:00:57]} 20. Qd2 {[%emt 0:00:55]} Qf4 {[%emt 0:01:04]} 21. Qxf4 {[%emt 0:00:36]} exf4 {[%emt 0:00:08]} 0-1

[Event "European Union U14-ch 2024"]
[Site "Roznov pod Radhostem"]
[Date "2024.08.07"]
[Round "3.7"]
[White "Duchatel, Maxime"]
[Black "Barteckova, Nikol"]
[Result "1/2-1/2"]
[ECO "B21"]
[WhiteElo "1682"]
[BlackElo "1669"]
[Annotator "NA RC"]
[PlyCount "122"]
[EventDate "2024.08.02"]
[EventType "swiss"]
[EventCountry "CZE"]
[SourceTitle "playchess.com"]
[Source "ChessBase"]
[SourceQuality "1"]
[TimeControl "5400+30"]

1. e4 {[%emt 0:00:04]} c5 {[%emt 0:00:05]} 2. d4 {[%emt 0:00:04]} cxd4 {[%emt 0:00:03]} 3. c3 {[%emt 0:00:06]} Nf6 {[%emt 0:00:10]} 4. e5 {[%emt 0:00:05]} Nd5 {[%emt 0:00:14]} 5. Nf3 {[%emt 0:00:06]} Nc6 {[%emt 0:00:51]} 6. cxd4 {[%emt 0:00:05]} d6 {[%emt 0:01:58]} 7. Bc4 {[%emt 0:00:06]} Nb6 {[%emt 0:00:09]} 8. Bb5 {[%emt 0:00:04]} dxe5 {[%emt 0:01:45]} 9. Nxe5 {[%emt 0:00:05]} Bd7 {[%emt 0:00:35]} 10. Nxd7 {[%emt 0:00:27]} Qxd7 {[%emt 0:00:09]} 11. O-O {[%emt 0:00:07]} e6 {[%emt 0:01:36]} 12. Nc3 {[%emt 0:00:59]} Be7 {[%emt 0:01:28]} 13. Qg4 {[%emt 0:00:06]} Bf6 {[%emt 0:09:25]} 14. Ne4 {[%emt 0:03:56]} Qe7 {[%emt 0:17:22]} 15. Bf4 {[%emt 0:06:32]} Rd8 {[%emt 0:02:19]} 16. Nxf6+ {[%emt 0:01:08]} gxf6 {[%emt 0:13:15]} 17. Qg7 {[%emt 0:00:21]} Kd7 {[%emt 0:03:15]} 18. Qg3 {[%emt 0:05:09]} Rdg8 {[%emt 0:03:57]} 19. Qb3 {[%emt 0:05:19]} Kd8 {[%emt 0:09:02]} 20. Rac1 {[%emt 0:04:18]} e5 {[%emt 0:16:48]} 21. dxe5 {[%emt 0:01:49]} fxe5 {[%emt 0:00:23]} 22. Rfd1+ {[%emt 0:00:45]} Kc7 {[%emt 0:05:06]} 23. Bg3 {[%emt 0:01:54]} Rg6 {[%emt 0:01:47]} 24. Qc3 {[%emt 0:05:10]} Re8 {[%emt 0:01:21]} 25. f4 {[%emt 0:02:42]} Nd7 {[%emt 0:02:19]} 26. fxe5 {[%emt 0:01:18]} Ndxe5 {[%emt 0:00:29]} 27. Re1 {[%emt 0:00:04]} Re6 {[%emt 0:05:32]} 28. Bc4 {[%emt 0:00:06]} Qc5+ {[%emt 0:01:34]} 29. Kh1 {[%emt 0:00:24]} R6e7 {[%emt 0:00:11]} 30. Bxe5+ {[%emt 0:00:53]} Rxe5 {[%emt 0:00:23]} 31. Rxe5 {[%emt 0:00:20]} Rxe5 {[%emt 0:00:11]} 32. Bxf7 {[%emt 0:00:20]} Qxc3 {[%emt 0:00:49]} 33. bxc3 {[%emt 0:00:05]} Rc5 {[%emt 0:00:30]} 34. h3 {[%emt 0:00:49]} Nb4 {[%emt 0:01:15]} 35. Bb3 {[%emt 0:01:19]} Nd3 {[%emt 0:00:47]} 36. Rf1 {[%emt 0:00:30]} Rh5 {[%emt 0:00:36]} 37. Rf7+ {[%emt 0:00:21]} Kb6 {[%emt 0:00:13]} 38. Bc2 {[%emt 0:00:13]} Nc1 {[%emt 0:00:35]} 39. Rxh7 {[%emt 0:02:19]} Rxh7 {[%emt 0:00:45]} 40. Bxh7 {[%emt 0:00:08]} Nxa2 {[%emt 0:00:02]} 41. c4 {[%emt 0:00:12]} Nb4 {[%emt 0:00:21]} 42. g4 {[%emt 0:00:08]} a5 {[%emt 0:00:05]} 43. g5 {[%emt 0:02:00]} Nc6 {[%emt 0:00:48]} 44. g6 {[%emt 0:00:31]} a4 {[%emt 0:00:17]} 45. g7 {[%emt 0:00:07]} Ne7 {[%emt 0:00:01]} 46. g8=Q {[%emt 0:00:35]} Nxg8 {[%emt 0:00:14]} 47. Bxg8 {[%emt 0:00:06]} a3 {[%emt 0:00:31]} 48. c5+ {[%emt 0:00:04]} Kxc5 {[%emt 0:00:09]} 49. h4 {[%emt 0:00:07]} Kd6 {[%emt 0:00:31]} 50. Kg2 {[%emt 0:00:40]} Ke7 {[%emt 0:00:51]} 51. Kg3 {[%emt 0:00:09]} Kf6 {[%emt 0:00:18]} 52. Kg4 {[%emt 0:00:21]} Kg6 {[%emt 0:00:19]} 53. Ba2 {[%emt 0:01:03]} b6 {[%emt 0:00:16]} 54. h5+ {[%emt 0:00:04]} Kh6 {[%emt 0:00:30]} 55. Bc4 {[%emt 0:00:10]} b5 {[%emt 0:00:22]} 56. Be6 {[%emt 0:00:22]} Kh7 {[%emt 0:01:07]} 57. Kg5 {[%emt 0:00:12]} Kg7 {[%emt 0:00:06]} 58. h6+ {[%emt 0:00:26]} Kh7 {[%emt 0:00:12]} 59. Bf5+ {[%emt 0:00:11]} Kh8 {[%emt 0:01:02]} 60. Bb1 {[%emt 0:00:17]} b4 {[%emt 0:00:13]} 61. Ba2 {[%emt 0:00:30]} Kh7 {[%emt 0:00:27]} 1/2-1/2

[Event "European Union U14-ch 2024"]
[Site "Roznov pod Radhostem"]
[Date "2024.08.08"]
[Round "4.1"]
[White "Bocquenet-Drouode, Hugo"]
[Black "Constantinoiu, Alexandru Ioan"]
[Result "1/2-1/2"]
[ECO "D02"]
[WhiteElo "2025"]
[BlackElo "1904"]
[Annotator "NA RC"]
[PlyCount "52"]
[EventDate "2024.08.02"]
[EventType "swiss"]
[EventCountry "CZE"]
[SourceTitle "playchess.com"]
[Source "ChessBase"]
[SourceQuality "1"]
[TimeControl "5400+30"]

1. d4 {[%emt 0:00:06]} d5 {[%emt 0:00:15]} 2. Nf3 {[%emt 0:00:28]} Nf6 {[%emt 0:01:20]} 3. Bf4 {[%emt 0:00:08]} c5 {[%emt 0:00:38]} 4. e3 {[%emt 0:00:19]} Nc6 {[%emt 0:01:28]} 5. Nbd2 {[%emt 0:00:42]} Qb6 {[%emt 0:02:40]} 6. dxc5 {[%emt 0:00:30]} Qxc5 {[%emt 0:07:53]} 7. c4 $14 {[%emt 0:14:02]} dxc4 {[%emt 0:22:01]} 8. Bxc4 {[%emt 0:19:44]} e5 {[%emt 0:06:25]} 9. Bg3 {[%emt 0:08:06]} e4 {[%emt 0:07:43]} 10. Nd4 {[%emt 0:01:04]} Nxd4 {[%emt 0:11:37]} 11. exd4 {[%emt 0:00:18]} Qb6 {[%emt 0:01:49]} 12. O-O {[%emt 0:04:28]} Bb4 {[%emt 0:05:43]} 13. Be5 {[%emt 0:04:24]} Bxd2 {[%emt 0:01:51]} 14. Qxd2 {[%emt 0:00:17]} O-O {[%emt 0:03:49]} 15. Qg5 {[%emt 0:04:22]} h6 {[%emt 0:03:08]} 16. Qg3 {[%emt 0:04:44]} Ng4 {[%emt 0:02:55]} 17. Bd6 {[%emt 0:09:40]} Re8 {[%emt 0:00:47]} 18. Bc5 {[%emt 0:11:12]} Qd8 {[%emt 0:01:31]} 19. f3 {[%emt 0:02:46]} Ne3 {[%emt 0:04:12]} 20. Bxf7+ {[%emt 0:01:35]} Kxf7 {[%emt 0:00:26]} 21. Qf4+ {[%emt 0:00:13]} Nf5 {[%emt 0:06:58]} 22. fxe4 {[%emt 0:00:09]} b6 23. Bd6 {[%emt 0:01:21]} g5 {[%emt 0:00:51]} 24. Qg3 {[%emt 0:03:53]} Rxe4 {[%emt 0:00:26]} 25. Qf3 {[%emt 0:00:24]} Qe8 26. g4 Qc6 1/2-1/2

[Event "European Union U14-ch 2024"]
[Site "Roznov pod Radhostem"]
[Date "2024.08.08"]
[Round "4.2"]
[White "Belocky, Daniel"]
[Black "Michalska, Lena"]
[Result "0-1"]
[ECO "D30"]
[WhiteElo "1731"]
[BlackElo "1837"]
[Annotator "NA RC"]
[PlyCount "98"]
[EventDate "2024.08.02"]
[EventType "swiss"]
[EventCountry "CZE"]
[SourceTitle "playchess.com"]
[Source "ChessBase"]
[SourceQuality "1"]
[TimeControl "5400+30"]

1. d4 {[%emt 0:00:02]} d5 {[%emt 0:00:02]} 2. c4 {[%emt 0:00:03]} e6 {[%emt 0:00:06]} 3. g3 {[%emt 0:00:05]} Nf6 {[%emt 0:00:17]} 4. Nf3 {[%emt 0:00:04]} b6 {[%emt 0:00:42]} 5. Bg2 {[%emt 0:00:06]} Bb7 {[%emt 0:00:02]} 6. O-O {[%emt 0:00:13]} Nbd7 {[%emt 0:00:03]} 7. Qc2 {[%emt 0:00:07]} c5 {[%emt 0:00:35]} 8. Nbd2 {[%emt 0:00:58]} (8. cxd5 {was preferrable.} Nxd5 9. Nc3) 8... Be7 {[%emt 0:10:42]} 9. b3 {[%emt 0:01:55]} O-O {[%emt 0:00:13]} 10. Bb2 {[%emt 0:00:18]} dxc4 {[%emt 0:02:58]} 11. Nxc4 {[%emt 0:01:22]} Rc8 {[%emt 0:03:48]} 12. Qd1 {[%emt 0:03:03]} Qc7 {[%emt 0:05:49]} 13. Rc1 {[%emt 0:02:50]} Rfd8 {[%emt 0:00:38]} 14. e3 $11 {[%emt 0:01:38]} Qb8 {[%emt 0:08:06]} 15. Qe2 {[%emt 0:03:25]} Qa8 {[%emt 0:00:36]} 16. Nh4 {[%emt 0:00:56]} Ne4 {[%emt 0:02:59]} 17. Nf3 {[%emt 0:02:57]} Ng5 {[%emt 0:10:38]} 18. Ncd2 {[%emt 0:01:32]} Bf6 {[%emt 0:01:55]} 19. h4 {[%emt 0:02:49]} Nxf3+ {[%emt 0:00:38]} 20. Bxf3 {[%emt 0:00:27]} cxd4 {[%emt 0:00:12]} 21. Bxd4 {[%emt 0:00:35]} Bxd4 {[%emt 0:00:09]} 22. exd4 {[%emt 0:00:15]} Nf6 {[%emt 0:00:42]} 23. Bxb7 {[%emt 0:00:07]} Qxb7 {[%emt 0:00:06]} 24. Nf3 {[%emt 0:00:06]} Rc7 {[%emt 0:03:12]} 25. Rxc7 {[%emt 0:01:38]} Qxc7 {[%emt 0:00:07]} 26. Qe5 {[%emt 0:00:55]} Qc2 {[%emt 0:04:15]} 27. Qb5 {[%emt 0:01:48]} Qxa2 {[%emt 0:03:31]} 28. Rc1 {[%emt 0:04:09]} Ne4 {[%emt 0:02:33]} 29. Rf1 {[%emt 0:01:34]} Nd2 {[%emt 0:00:09]} 30. Nxd2 {[%emt 0:00:22]} Qxd2 {[%emt 0:00:06]} 31. Qa6 {[%emt 0:00:12]} Qxd4 {[%emt 0:00:18]} 32. Qxa7 {[%emt 0:00:08]} g6 {[%emt 0:06:33]} 33. Qc7 {[%emt 0:01:44]} Rd5 {[%emt 0:04:26]} 34. Rc1 {[%emt 0:03:23]} Rc5 {[%emt 0:02:04]} 35. Rxc5 {[%emt 0:00:57]} Qxc5 {[%emt 0:00:09]} 36. Qd8+ {[%emt 0:01:26]} Kg7 {[%emt 0:00:31]} 37. Qd3 {[%emt 0:00:11]} h5 {[%emt 0:00:39]} 38. Kg2 {[%emt 0:00:15]} Qd5+ {[%emt 0:00:54]} 39. Qxd5 {[%emt 0:00:26]} exd5 {[%emt 0:00:05]} 40. Kf3 {[%emt 0:00:08]} Kf6 {[%emt 0:00:31]} 41. Ke3 {[%emt 0:00:11]} Ke5 {[%emt 0:00:34]} 42. f3 {[%emt 0:01:25]} d4+ {[%emt 0:00:48]} 43. Kd3 {[%emt 0:00:13]} Kd5 {[%emt 0:01:28]} 44. b4 {[%emt 0:01:34]} f5 {[%emt 0:00:20]} 45. b5 {[%emt 0:00:37]} Kc5 {[%emt 0:00:26]} 46. f4 {[%emt 0:00:30]} Kd5 {[%emt 0:00:29]} 47. Ke2 {[%emt 0:00:09]} Kc4 {[%emt 0:00:03]} 48. Kd2 {[%emt 0:00:09]} Kxb5 {[%emt 0:00:05]} 49. Kd3 {[%emt 0:00:09]} Kc5 {[%emt 0:00:11]} 0-1

[Event "European Union U14-ch 2024"]
[Site "Roznov pod Radhostem"]
[Date "2024.08.08"]
[Round "4.3"]
[White "Kincses, Emma"]
[Black "Boros, David"]
[Result "0-1"]
[ECO "A05"]
[WhiteElo "1618"]
[BlackElo "1796"]
[Annotator "NA RC"]
[PlyCount "116"]
[EventDate "2024.08.02"]
[EventType "swiss"]
[EventCountry "CZE"]
[SourceTitle "playchess.com"]
[Source "ChessBase"]
[SourceQuality "1"]
[TimeControl "5400+30"]

1. Nf3 {[%emt 0:00:03]} Nf6 {[%emt 0:00:24]} 2. g3 {[%emt 0:00:08]} d5 {[%emt 0:02:44]} 3. d4 {[%emt 0:00:06]} b6 {[%emt 0:06:52]} 4. Bg2 {[%emt 0:00:40]} Bb7 {[%emt 0:01:23]} 5. O-O {[%emt 0:00:15]} e6 {[%emt 0:01:03]} 6. b3 {[%emt 0:00:23]} Nbd7 {[%emt 0:03:39]} 7. Bb2 {[%emt 0:01:00]} Bd6 {[%emt 0:03:57]} 8. Nbd2 {[%emt 0:02:46]} O-O {[%emt 0:00:42]} 9. c4 {[%emt 0:01:27]} c5 {[%emt 0:01:43]} 10. e3 {[%emt 0:05:13]} Rc8 {[%emt 0:03:30]} 11. Rc1 {[%emt 0:02:18]} Qe7 {[%emt 0:02:03]} 12. Re1 {[%emt 0:21:35]} Rfd8 {[%emt 0:10:09]} 13. Ne5 {[%emt 0:07:11]} cxd4 {[%emt 0:05:48]} 14. exd4 {[%emt 0:01:33]} Bb4 {[%emt 0:18:12]} 15. Re2 {[%emt 0:10:40]} Bxd2 {[%emt 0:03:01]} 16. Qxd2 {[%emt 0:04:24]} Nxe5 {[%emt 0:01:06]} 17. Rxe5 {[%emt 0:03:37]} dxc4 {[%emt 0:03:32]} 18. bxc4 {[%emt 0:02:38]} Bxg2 {[%emt 0:01:11]} 19. Kxg2 {[%emt 0:01:12]} Qb7+ {[%emt 0:03:03]} 20. Kg1 {[%emt 0:00:12]} Qa6 {[%emt 0:09:00]} 21. c5 {[%emt 0:16:25]} Qxa2 {[%emt 0:03:14]} 22. Ra1 {[%emt 0:01:24]} Qc4 {[%emt 0:01:35]} 23. Rxa7 {[%emt 0:01:49]} bxc5 {[%emt 0:00:43]} 24. d5 {[%emt 0:04:24]} Rxd5 {[%emt 0:03:49]} 25. Rxd5 {[%emt 0:00:32]} Qxd5 {[%emt 0:00:35]} 26. Qf4 {[%emt 0:00:52]} Qd8 {[%emt 0:04:50]} 27. h4 {[%emt 0:00:59]} c4 {[%emt 0:00:42]} 28. Bc3 {[%emt 0:00:32]} Qb6 {[%emt 0:01:37]} 29. Re7 {[%emt 0:02:18]} Qb1+ {[%emt 0:00:22]} 30. Kh2 {[%emt 0:00:22]} Qe4 {[%emt 0:02:43]} 31. Qg5 {[%emt 0:02:02]} Qg6 {[%emt 0:00:50]} 32. Qb5 {[%emt 0:01:35]} Qd3 {[%emt 0:01:02]} 33. Qb2 {[%emt 0:02:22]} Nd5 {[%emt 0:00:50]} 34. Rb7 {[%emt 0:02:51]} Nxc3 {[%emt 0:00:55]} 35. Rb8 {[%emt 0:00:30]} Qd8 {[%emt 0:00:28]} 36. Rxc8 {[%emt 0:00:10]} Qxc8 {[%emt 0:00:07]} 37. Qxc3 {[%emt 0:00:03]} h6 {[%emt 0:00:31]} 38. Kg2 {[%emt 0:00:22]} Qc5 {[%emt 0:00:15]} 39. Qb2 {[%emt 0:00:24]} c3 {[%emt 0:00:19]} 40. Qc2 {[%emt 0:00:11]} Qd5+ {[%emt 0:00:11]} 41. Kf1 {[%emt 0:00:31]} Qd2 {[%emt 0:00:38]} 42. Qxd2 {[%emt 0:00:10]} cxd2 {[%emt 0:00:01]} 43. Ke2 {[%emt 0:00:07]} f5 {[%emt 0:01:12]} 44. Kxd2 {[%emt 0:00:05]} Kf7 {[%emt 0:00:06]} 45. Ke3 {[%emt 0:00:04]} e5 {[%emt 0:00:15]} 46. Kf3 {[%emt 0:00:44]} h5 {[%emt 0:00:35]} 47. Ke3 {[%emt 0:00:14]} Ke6 {[%emt 0:00:19]} 48. Kf3 {[%emt 0:00:32]} Kd5 {[%emt 0:00:17]} 49. Ke3 {[%emt 0:00:09]} Kc4 {[%emt 0:00:21]} 50. Ke2 {[%emt 0:00:32]} Kc3 {[%emt 0:00:40]} 51. Ke3 {[%emt 0:00:09]} Kc4 {[%emt 0:00:22]} 52. Ke2 {[%emt 0:00:06]} Kd4 {[%emt 0:00:09]} 53. Kd2 {[%emt 0:01:09]} Ke4 {[%emt 0:00:40]} 54. Ke2 {[%emt 0:00:07]} g6 {[%emt 0:00:11]} 55. f3+ {[%emt 0:00:30]} Kd4 {[%emt 0:00:15]} 56. Kf2 {[%emt 0:00:42]} Kd3 {[%emt 0:00:28]} 57. f4 {[%emt 0:00:31]} e4 {[%emt 0:00:33]} 58. Ke1 {[%emt 0:00:20]} Ke3 {[%emt 0:00:02]} 0-1

[Event "European Union U14-ch 2024"]
[Site "Roznov pod Radhostem"]
[Date "2024.08.08"]
[Round "4.4"]
[White "Bartova, Hana"]
[Black "Stara, Zuzana"]
[Result "0-1"]
[ECO "B13"]
[WhiteElo "1796"]
[BlackElo "2005"]
[Annotator "NA RC"]
[PlyCount "82"]
[EventDate "2024.08.02"]
[EventType "swiss"]
[EventCountry "CZE"]
[SourceTitle "playchess.com"]
[Source "ChessBase"]
[SourceQuality "1"]
[TimeControl "5400+30"]

1. e4 {[%emt 0:00:03]} c6 {[%emt 0:00:03]} 2. d4 {[%emt 0:00:03]} d5 {[%emt 0:00:06]} 3. exd5 {[%emt 0:00:04]} cxd5 {[%emt 0:00:04]} 4. c4 {[%emt 0:00:05]} e6 {[%emt 0:01:01]} 5. Nf3 {[%emt 0:02:57]} Nc6 {[%emt 0:01:07]} 6. Nc3 {[%emt 0:02:06]} Bb4 {[%emt 0:01:25]} 7. Bd3 {[%emt 0:03:14]} dxc4 {[%emt 0:01:55]} 8. Bxc4 {[%emt 0:00:21]} Nf6 {[%emt 0:08:49]} 9. O-O {[%emt 0:06:21]} h6 {[%emt 0:00:20]} 10. a3 {[%emt 0:01:33]} Bxc3 {[%emt 0:02:25]} 11. bxc3 {[%emt 0:00:02]} a6 {[%emt 0:01:43]} (11... O-O $14) 12. Bb3 {[%emt 0:08:20]} ({White should play} 12. a4 $16) 12... b5 $16 {[%emt 0:01:37]} (12... b6 $14) 13. Qd3 {[%emt 0:07:51]} O-O {[%emt 0:03:30]} 14. Bc2 {[%emt 0:01:51]} Ne7 {[%emt 0:04:51]} 15. Ne5 {[%emt 0:08:59]} Bb7 {[%emt 0:07:23]} 16. g4 {[%emt 0:13:36]} Be4 {[%emt 0:09:13]} 17. Qe2 {[%emt 0:06:04]} Bxc2 {[%emt 0:07:02]} 18. Qxc2 {[%emt 0:00:06]} Rc8 {[%emt 0:01:11]} 19. Be3 {[%emt 0:07:54]} Ned5 {[%emt 0:07:12]} 20. Bd2 {[%emt 0:05:58]} Nxc3 {[%emt 0:10:40]} 21. Bxc3 {[%emt 0:03:31]} Nd5 {[%emt 0:00:46]} 22. Rac1 {[%emt 0:01:14]} Rxc3 {[%emt 0:02:44]} 23. Qb2 {[%emt 0:00:57]} Rxc1 {[%emt 0:12:14]} 24. Rxc1 {[%emt 0:00:44]} Qg5 {[%emt 0:00:36]} 25. h3 {[%emt 0:01:51]} Nf4 {[%emt 0:01:44]} 26. Kh2 {[%emt 0:03:19]} f6 {[%emt 0:09:38]} 27. Nf3 {[%emt 0:00:26]} Qd5 {[%emt 0:00:14]} 28. Rc3 {[%emt 0:01:56]} Qd6 {[%emt 0:00:07]} 29. Qb4 {[%emt 0:03:09]} Qb8 {[%emt 0:00:05]} 30. Kh1 {[%emt 0:01:50]} Nd5 {[%emt 0:00:06]} 31. Qb3 {[%emt 0:01:55]} Nxc3 {[%emt 0:00:06]} 32. Qxc3 {[%emt 0:00:07]} Qf4 {[%emt 0:01:06]} 33. Kg2 {[%emt 0:00:14]} f5 {[%emt 0:01:34]} 34. g5 {[%emt 0:01:37]} hxg5 {[%emt 0:01:18]} 35. Ne5 {[%emt 0:01:37]} Qe4+ {[%emt 0:01:28]} 36. f3 {[%emt 0:00:42]} Qe2+ {[%emt 0:00:57]} 37. Kg1 {[%emt 0:00:55]} g4 {[%emt 0:01:31]} 38. Qb3 {[%emt 0:02:24]} Rf6 {[%emt 0:00:55]} 39. hxg4 {[%emt 0:00:23]} fxg4 {[%emt 0:00:09]} 40. f4 {[%emt 0:00:41]} Qe1+ {[%emt 0:00:34]} 41. Kg2 {[%emt 0:00:09]} Qd2+ {[%emt 0:00:11]} 0-1